fUSD/lending_fUSD_20250612
["ID","MTS","AMOUNT","RATE_DAILY","PERIOD"]
[365487866,1749701444504,-1463.15,0.00019178,2]
[365487867,1749701444515,-490.0,0.00019178,2]
[365487868,1749701444525,-1403.9,0.00019178,2]
[365487869,1749701444535,-490.0,0.00019178,2]
[365487870,1749701444544,-490.0,0.00019178,2]
[365487871,1749701444554,-1671.18,0.00019178,2]
[365487872,1749701444564,-490.0,0.00019178,2]
[365487873,1749701444573,-490.0,0.00019178,2]
[365487874,1749701444582,-490.0,0.00019178,2]
[365487875,1749701444592,-994.43,0.00019178,2]
[365487876,1749701444601,-3231.15,0.00019178,2]
[365487877,1749701444611,-500.0,0.00019178,2]
[365487878,1749701444620,-443.79509824,0.00019178,2]
[365487879,1749701444630,-1057.81,0.00019178,2]
[365487880,1749701444640,-490.0,0.00019178,2]
[365487881,1749701444649,-3808.34,0.00019178,2]
[365487882,1749701444658,-490.0,0.00019178,2]
[365487883,1749701444668,-490.0,0.00019178,2]
[365487884,1749701444677,-490.0,0.00019178,2]
[365487885,1749701444687,-1190.18,0.00019178,2]
[365487886,1749701444696,-1019.36,0.00019178,2]
[365487887,1749701444707,-490.0,0.00019178,2]
[365487888,1749701444716,-490.0,0.00019178,2]
[365487889,1749701444725,-859.86,0.00019178,2]
[365487890,1749701444735,-500.0,0.00019178,2]
[365487891,1749701444746,-500.0,0.00019178,2]
[365487892,1749701444756,-490.0,0.00019178,2]
[365487893,1749701444766,-790.2,0.00019178,2]
[365487894,1749701444775,-918.27,0.00019178,2]
[365487895,1749701444785,-490.0,0.00019178,2]
[365487896,1749701444795,-918.02904443,0.00019178,2]
[365487897,1749701444815,-1053.26095557,0.00019178,2]
[365487898,1749701444825,-4621.41,0.00019178,2]
[365487899,1749701444835,-2777.65,0.00019178,2]
[365487900,1749701444845,-476.32871052,0.00019178,2]
[365487901,1749701444855,-490.0,0.00019178,2]
[365487902,1749701444864,-490.0,0.00019178,2]
[365487903,1749701444874,-649.03060961,0.00019178,2]
[365487904,1749701444886,-422.23939039,0.00019178,2]
[365487905,1749701444896,-490.0,0.00019178,2]
[365487906,1749701444906,-518.34,0.00019178,2]
[365487907,1749701444915,-642.65,0.00019178,2]
[365487908,1749701444925,-490.0,0.00019178,2]
[365487909,1749701444934,-490.0,0.00019178,2]
[365487910,1749701444944,-1358.65,0.00019178,2]
[365487911,1749701444953,-490.0,0.00019178,2]
[365487912,1749701444963,-801.20686811,0.00019178,2]
[365487913,1749701444999,-2003.58313189,0.00019178,2]
[365487914,1749701445009,-222.87066159,0.00019178,2]
[365487915,1749701445019,-1173.98,0.00019178,2]
[365487916,1749701445029,-539.88,0.00019178,2]
[365487917,1749701445038,-490.0,0.00019178,2]
[365487918,1749701445048,-490.0,0.00019178,2]
[365487919,1749701445058,-2528.5,0.00019178,2]
[365487920,1749701445068,-490.0,0.00019178,2]
[365487921,1749701445078,-1821.78,0.00019178,2]
[365487922,1749701445088,-1026.65,0.00019178,2]
[365487923,1749701445101,-1081.48,0.00019178,2]
[365487924,1749701445111,-490.0,0.00019178,2]
[365487925,1749701445120,-480.0,0.00019178,2]
[365487926,1749701445131,-685.42,0.00019178,2]
[365487927,1749701445140,-1097.12,0.00019178,2]
[365487928,1749701445150,-1257.65,0.00019178,2]
[365487929,1749701445159,-699.42,0.00019178,2]
[365487930,1749701445169,-636.6366562,0.00019178,2]
[365487931,1749701445180,-704.62,0.00019178,2]
[365487932,1749701445189,-490.0,0.00019178,2]
[365487933,1749701445199,-459.07378679,0.00019178,2]
[365487934,1749701445209,-467.54913703,0.00019178,2]
[365487935,1749701445218,-155.663536,0.00019178,2]
[365487936,1749701445227,-490.0,0.00019178,2]
[365487937,1749701445236,-490.0,0.00019178,2]
[365487938,1749701445246,-490.0,0.00019178,2]
[365487939,1749701445256,-882.41,0.00019178,2]
[365487940,1749701445266,-1922.36,0.00019178,2]
[365487941,1749701445276,-562.78,0.00019178,2]
[365487942,1749701445285,-469.28157446,0.00019178,2]
[365487943,1749701445295,-490.0,0.00019178,2]
[365487944,1749701445304,-766.18,0.00019178,2]
[365487945,1749701445315,-766.18,0.00019178,2]
[365487946,1749701445324,-490.0,0.00019178,2]
[365487947,1749701445334,-490.0,0.00019178,2]
[365487948,1749701445344,-4718.14,0.00019178,2]
[365487949,1749701445353,-13072.36,0.00019178,2]
[365487950,1749701445364,-1321.93,0.00019178,2]
[365487951,1749701445596,-490.0,0.00019178,2]
[365487952,1749701445606,-423.83819206,0.00019178,2]
[365487953,1749701445616,-490.0,0.00019178,2]
[365487954,1749701445625,-762.52,0.00019178,2]
[365487955,1749701445635,-490.0,0.00019178,2]
[365487956,1749701445646,-463.63477427,0.00019178,2]
[365487957,1749701445656,-490.0,0.00019178,2]
[365487958,1749701445666,-2141.41,0.00019178,2]
[365487959,1749701445675,-490.0,0.00019178,2]
[365487960,1749701445686,-490.0,0.00019178,2]
[365487961,1749701445696,-1410.05,0.00019178,2]
[365487962,1749701445706,-490.0,0.00019178,2]
[365487963,1749701445716,-490.0,0.00019178,2]
[365487964,1749701445726,-1408.36,0.00019178,2]
[365487965,1749701445736,-1128.49,0.00019178,2]
[365487966,1749701445746,-490.0,0.00019178,2]
[365487967,1749701445756,-496.35268129,0.00019178,2]
[365487968,1749701445767,-490.0,0.00019178,2]
[365487969,1749701445777,-693.45,0.00019178,2]
[365487970,1749701445786,-1145.9,0.00019178,2]
[365487971,1749701445796,-1533.5,0.00019178,2]
[365487972,1749701445806,-310.24708947,0.00019178,2]
[365487973,1749701445815,-490.0,0.00019178,2]
[365487974,1749701445825,-2448.82,0.00019178,2]
[365487975,1749701445834,-490.0,0.00019178,2]
[365487976,1749701445845,-1029.29,0.00019178,2]
[365487977,1749701445855,-490.0,0.00019178,2]
[365487978,1749701445865,-490.0,0.00019178,2]
[365487979,1749701445874,-490.0,0.00019178,2]
[365487980,1749701445885,-406.22654964,0.00019178,2]
[365487981,1749701445895,-490.0,0.00019178,2]
[365487982,1749701445905,-893.71,0.00019178,2]
[365487983,1749701445916,-151.158857,0.00019178,2]
[365487984,1749701445926,-427.22498021,0.00019178,2]
[365487985,1749701445936,-561.33,0.00019178,2]
[365487986,1749701445946,-568.07,0.00019178,2]
[365487988,1749701445956,-490.0,0.00019178,2]
[365487989,1749701445965,-643.53,0.00019178,2]
[365487990,1749701445975,-423.31996753,0.00019178,2]
[365487991,1749701445984,-500.0,0.00019178,2]
[365487992,1749701445994,-592.85,0.00019178,2]
[365487994,1749701446004,-490.0,0.00019178,2]
[365487996,1749701446016,-500.0,0.00019178,2]
[365487997,1749701446025,-490.0,0.00019178,2]
[365487998,1749701446034,-490.0,0.00019178,2]
[365487999,1749701446044,-490.0,0.00019178,2]
[365488000,1749701446054,-490.0,0.00019178,2]
[365488001,1749701446063,-1035.98,0.00019178,2]
[365488002,1749701446073,-210.23079431,0.00019178,2]
[365488003,1749701446083,-822.77,0.00019178,2]
[365488005,1749701446096,-284.89439044,0.00019178,2]
[365488006,1749701446106,-236.89109604,0.00019178,2]
[365488007,1749701446115,-535.06,0.00019178,2]
[365488008,1749701446125,-490.0,0.00019178,2]
[365488009,1749701446135,-490.0,0.00019178,2]
[365488010,1749701446144,-5421.08,0.00019178,2]
[365488011,1749701446154,-825.03,0.00019178,2]
[365488012,1749701446163,-542.96,0.00019178,2]
[365488013,1749701446174,-490.0,0.00019178,2]
[365488014,1749701446184,-1910.84,0.00019178,2]
[365488015,1749701446194,-1109.86,0.00019178,2]
[365488016,1749701446204,-692.91,0.00019178,2]
[365488017,1749701446214,-1325.15,0.00019178,2]
[365488018,1749701446224,-3579.5,0.00019178,2]
[365488019,1749701446234,-990.47,0.00019178,2]
[365488020,1749701446244,-504.97558544,0.00019178,2]
[365488021,1749701446253,-490.0,0.00019178,2]
[365488022,1749701446263,-710.1,0.00019178,2]
[365488023,1749701446273,-445.71957995,0.00019178,2]
[365488024,1749701446283,-1312.1,0.00019178,2]
[365488025,1749701446292,-154.21837,0.00019178,2]
[365488026,1749701446303,-3860.13,0.00019178,2]
[365488027,1749701446313,-644.74,0.00019178,2]
[365488028,1749701446323,-443.20549465,0.00019178,2]
[365488029,1749701446332,-490.0,0.00019178,2]
[365488030,1749701446342,-490.0,0.00019178,2]
[365488031,1749701446351,-450.07834467,0.00019178,2]
[365488032,1749701446361,-490.0,0.00019178,2]
[365488033,1749701446371,-490.0,0.00019178,2]
[365488034,1749701446381,-762.77,0.00019178,2]
[365488035,1749701446391,-490.0,0.00019178,2]
[365488036,1749701446404,-276.91364046,0.00019178,2]
[365488037,1749701446414,-490.0,0.00019178,2]
[365488038,1749701446424,-4912.12,0.00019178,2]
[365488039,1749701446433,-490.0,0.00019178,2]
[365488040,1749701446442,-490.0,0.00019178,2]
[365488041,1749701446452,-490.0,0.00019178,2]
[365488042,1749701446462,-1136.81,0.00019178,2]
[365488043,1749701446471,-15982.41,0.00019178,2]
[365488044,1749701446481,-2287.66,0.00019178,2]
[365488045,1749701446490,-694.84,0.00019178,2]
[365488046,1749701446500,-490.0,0.00019178,2]
[365488047,1749701446509,-3750.16,0.00019178,2]
[365488048,1749701446520,-490.0,0.00019178,2]
[365488049,1749701446530,-490.0,0.00019178,2]
[365488050,1749701446540,-543.42,0.00019178,2]
[365488052,1749701446549,-490.0,0.00019178,2]
[365488054,1749701446559,-490.0,0.00019178,2]
[365488056,1749701446569,-1580.73,0.00019178,2]
[365488058,1749701446579,-490.0,0.00019178,2]
[365488060,1749701446588,-696.13,0.00019178,2]
[365488062,1749701446598,-490.0,0.00019178,2]
[365488064,1749701446607,-2540.13,0.00019178,2]
[365488066,1749701446617,-490.0,0.00019178,2]
[365488068,1749701446627,-490.0,0.00019178,2]
[365488071,1749701446638,-490.0,0.00019178,2]
[365488073,1749701446648,-480.0,0.00019178,2]
[365488075,1749701446659,-1017.66,0.00019178,2]
[365488076,1749701446668,-830.98,0.00019178,2]
[365488078,1749701446678,-490.0,0.00019178,2]
[365488081,1749701446694,-1745.65,0.00019178,2]
[365488083,1749701446706,-385.589712,0.00019178,2]
[365488086,1749701446716,-161.171221,0.00019178,2]
[365488087,1749701446726,-490.0,0.00019178,2]
[365488088,1749701446736,-490.0,0.00019178,2]
[365488089,1749701446746,-345.19328304,0.00019178,2]
[365488090,1749701446756,-490.0,0.00019178,2]
[365488091,1749701446769,-3257.57,0.00019178,2]
[365488092,1749701446779,-490.0,0.00019178,2]
[365488093,1749701446791,-480.0,0.00019178,2]
[365488094,1749701446801,-449.59708434,0.00019178,2]
[365488095,1749701446812,-758.42,0.00019178,2]
[365488096,1749701446822,-3652.45,0.00019178,2]
[365488097,1749701446833,-758.42,0.00019178,2]
[365488098,1749701446844,-12049.78,0.00019178,2]
[365488099,1749701446854,-2494.0,0.00019178,2]
[365488100,1749701446864,-598.58,0.00019178,2]
[365488101,1749701446874,-720.26,0.00019178,2]
[365488102,1749701446885,-153.879958,0.00019178,2]
[365488103,1749701446895,-909.48,0.00019178,2]
[365488104,1749701446906,-2425.84,0.00019178,2]
[365488105,1749701446916,-490.0,0.00019178,2]
[365488106,1749701446926,-490.0,0.00019178,2]
[365488107,1749701446936,-2171.13,0.00019178,2]
[365488108,1749701446947,-490.0,0.00019178,2]
[365488109,1749701446957,-490.0,0.00019178,2]
[365488110,1749701446967,-490.0,0.00019178,2]
[365488111,1749701446978,-4500.73,0.00019178,2]
[365488112,1749701446988,-704.4,0.00019178,2]
[365488113,1749701446998,-509.37434961,0.00019178,2]
[365488114,1749701447009,-955.3,0.00019178,2]
[365488115,1749701447020,-529.44479982,0.00019178,2]
[365488116,1749701447031,-490.0,0.00019178,2]
[365488117,1749701447041,-937.74,0.00019178,2]
[365488118,1749701447053,-490.0,0.00019178,2]
[365488119,1749701447063,-1205.95,0.00019178,2]
[365488120,1749701447074,-490.0,0.00019178,2]
[365488121,1749701447084,-3951.3,0.00019178,2]
[365488122,1749701447097,-1721.67,0.00019178,2]
[365488123,1749701447107,-2067.1,0.00019178,2]
[365488124,1749701447117,-490.0,0.00019178,2]
[365488125,1749701447126,-150.039335,0.00019178,2]
[365488126,1749701447142,-557.89,0.00019178,2]
[365488127,1749701447152,-881.8,0.00019178,2]
[365488128,1749701447162,-2414.18,0.00019178,2]
[365488129,1749701447174,-457.19502805,0.00019178,2]
[365488130,1749701447185,-832.0,0.00019178,2]
[365488131,1749701447195,-624.71,0.00019178,2]
[365488132,1749701447205,-856.08,0.00019178,2]
[365488133,1749701447215,-886.03,0.00019178,2]
[365488134,1749701447225,-1086.63,0.00019178,2]
[365488135,1749701447235,-2648.99,0.00019178,2]
[365488136,1749701447245,-431.90106905,0.00019178,2]
[365488137,1749701447255,-638.87,0.00019178,2]
[365488138,1749701447266,-1621.39,0.00019178,2]
[365488139,1749701447277,-490.0,0.00019178,2]
[365488140,1749701447287,-490.0,0.00019178,2]
[365488141,1749701447297,-469.08605643,0.00019178,2]
[365488142,1749701447307,-4895.25,0.00019178,2]
[365488143,1749701447317,-834.34,0.00019178,2]
[365488144,1749701447327,-480.0,0.00019178,2]
[365488145,1749701447337,-480.0,0.00019178,2]
[365488146,1749701447347,-783.0,0.00019178,2]
[365488147,1749701447357,-628.35,0.00019178,2]
[365488148,1749701447367,-490.0,0.00019178,2]
[365488149,1749701447378,-854.93,0.00019178,2]
[365488150,1749701447388,-490.0,0.00019178,2]
[365488151,1749701447398,-5602.74,0.00019178,2]
[365488152,1749701447408,-4512.56,0.00019178,2]
[365488153,1749701447418,-1017.78,0.00019178,2]
[365488154,1749701447428,-1227.55,0.00019178,2]
[365488155,1749701447439,-490.0,0.00019178,2]
[365488156,1749701447449,-490.0,0.00019178,2]
[365488157,1749701447460,-516.05,0.00019178,2]
[365488158,1749701447470,-641.75,0.00019178,2]
[365488159,1749701447480,-490.0,0.00019178,2]
[365488160,1749701447490,-743.32,0.00019178,2]
[365488161,1749701447501,-490.0,0.00019178,2]
[365488162,1749701447511,-642.79,0.00019178,2]
[365488163,1749701447524,-490.0,0.00019178,2]
[365488164,1749701447534,-490.0,0.00019178,2]
[365488165,1749701447543,-3728.83,0.00019178,2]
[365488166,1749701447553,-2195.41,0.00019178,2]
[365488167,1749701447569,-500.34139933,0.00019178,2]
[365488168,1749701447579,-480.0,0.00019178,2]
[365488169,1749701447590,-490.0,0.00019178,2]
[365488170,1749701447600,-1401.99,0.00019178,2]
[365488171,1749701447610,-490.0,0.00019178,2]
[365488172,1749701447620,-490.0,0.00019178,2]
[365488173,1749701447630,-490.0,0.00019178,2]
[365488174,1749701447640,-490.0,0.00019178,2]
[365488175,1749701447651,-621.04,0.00019178,2]
[365488176,1749701447661,-2106.97,0.00019178,2]
[365488177,1749701447671,-490.0,0.00019178,2]
[365488178,1749701447680,-490.0,0.00019178,2]
[365488179,1749701447691,-490.0,0.00019178,2]
[365488180,1749701447701,-963.96,0.00019178,2]
[365488181,1749701447711,-490.0,0.00019178,2]
[365488182,1749701447722,-575.4,0.00019178,2]
[365488183,1749701447732,-1728.98,0.00019178,2]
[365488184,1749701447742,-827.97,0.00019178,2]
[365488185,1749701447753,-490.0,0.00019178,2]
[365488186,1749701447763,-490.0,0.00019178,2]
[365488187,1749701447774,-1746.55,0.00019178,2]
[365488188,1749701447784,-1000.0,0.00019178,2]
[365488189,1749701447794,-1000.0,0.00019178,2]
[365488190,1749701447804,-1000.0,0.00019178,2]
[365488191,1749701447815,-1000.0,0.00019178,2]
[365488192,1749701447824,-1000.0,0.00019178,2]
[365488193,1749701447834,-1000.0,0.00019178,2]
[365488194,1749701447844,-1000.0,0.00019178,2]
[365488195,1749701447854,-508.0,0.00019178,2]
[365488196,1749701447865,-590.0,0.00019231,2]
[365488197,1749701447876,-927.0,0.00019231,2]
[365488198,1749701447886,-558.0,0.00019231,2]
[365488199,1749701447896,-1275.0,0.00019231,2]
[365488200,1749701447906,-2001.0,0.00019231,2]
[365488201,1749701447916,-1256.0,0.00019231,2]
[365488202,1749701447926,-1159.0,0.00019231,2]
[365488203,1749701447936,-192.65102864,0.00019242,2]
[365488204,1749701447946,-164.41315124,0.00019242,2]
[365488205,1749701447957,-7066.0,0.0001926,2]
[365488206,1749701447967,-156.804,0.0001926,2]
[365488207,1749701447978,-4087.0,0.0001926,2]
[365488208,1749701447989,-884.0,0.0001926,2]
[365488209,1749701448012,-1704.25628026,0.0001926,2]
[365488210,1749701448024,-835.15920933,0.00019289,2]
[365488211,1749701448034,-203.0,0.000193,3]
[365488212,1749701448197,-330.71445369,0.00019328,2]
[365488213,1749701448206,-150.0,0.00019331,2]
[365488214,1749701448217,-170.0,0.00019331,2]
[365488215,1749701448227,-500.0,0.00019341,2]
[365488216,1749701448236,-500.0,0.00019341,2]
[365488217,1749701448246,-766.18,0.00019341,2]
[365488218,1749701448255,-766.18,0.00019341,2]
[365488219,1749701448266,-500.0,0.00019341,2]
[365488220,1749701448275,-758.42,0.00019341,2]
[365488221,1749701448285,-758.42,0.00019341,2]
[365488222,1749701448295,-490.0,0.00019342,2]
[365488223,1749701448304,-490.0,0.00019342,2]
[365488224,1749701448314,-490.0,0.00019342,2]
[365488225,1749701448323,-471.16595779,0.00019342,2]
[365488226,1749701448333,-2140.81616,0.00019342,2]
[365488227,1749701448343,-1871.654098,0.00019342,2]
[365488228,1749701448352,-490.0,0.00019342,2]
[365488229,1749701448361,-630.06,0.00019342,2]
[365488230,1749701448371,-528.97510332,0.00019342,2]
[365488231,1749701448386,-498.19852798,0.00019342,2]
[365488232,1749701448396,-490.0,0.00019342,2]
[365488233,1749701448406,-490.0,0.00019342,2]
[365488234,1749701448416,-490.0,0.00019342,2]
[365488235,1749701448426,-490.0,0.00019342,2]
[365488236,1749701448436,-490.0,0.00019342,2]
[365488237,1749701448445,-490.0,0.00019342,2]
[365488238,1749701448455,-490.0,0.00019342,2]
[365488239,1749701448464,-490.0,0.00019342,2]
[365488240,1749701448474,-490.0,0.00019342,2]
[365488241,1749701448485,-300.0,0.00019342,2]
[365488242,1749701448495,-490.0,0.00019342,2]
[365488243,1749701448505,-490.0,0.00019342,2]
[365488244,1749701448517,-490.0,0.00019342,2]
[365488245,1749701448527,-507.42434012,0.00019342,2]
[365488246,1749701448537,-490.0,0.00019342,2]
[365488247,1749701448547,-273.15843872,0.00019342,2]
[365488248,1749701448557,-490.0,0.00019342,2]
[365488249,1749701448567,-490.0,0.00019342,2]
[365488250,1749701448577,-490.0,0.00019342,2]
[365488251,1749701448588,-490.0,0.00019342,2]
[365488252,1749701448598,-189.45555588,0.00019342,2]
[365488253,1749701448608,-490.0,0.00019342,2]
[365488254,1749701448619,-482.33390101,0.00019342,2]
[365488255,1749701448630,-490.0,0.00019342,2]
[365488256,1749701448639,-490.0,0.00019342,2]
[365488257,1749701448650,-490.0,0.00019342,2]
[365488258,1749701448660,-490.0,0.00019342,2]
[365488259,1749701448671,-437.02052294,0.00019342,2]
[365488260,1749701448681,-479.97371732,0.00019342,2]
[365488261,1749701448691,-502.53205609,0.00019342,2]
[365488262,1749701448701,-477.17069264,0.00019342,2]
[365488263,1749701448711,-490.0,0.00019342,2]
[365488264,1749701448722,-480.0,0.00019342,2]
[365488265,1749701448732,-480.0,0.00019342,2]
[365488266,1749701448743,-490.0,0.00019342,2]
[365488267,1749701448752,-490.0,0.00019342,2]
[365488268,1749701448762,-621.02949399,0.00019342,2]
[365488269,1749701448774,-465.79302943,0.00019342,2]
[365488270,1749701448784,-513.89,0.00019342,2]
[365488271,1749701448795,-480.0,0.00019342,2]
[365488272,1749701448807,-490.0,0.00019342,2]
[365488273,1749701448817,-490.0,0.00019342,2]
[365488274,1749701448833,-490.0,0.00019342,2]
[365488275,1749701448843,-490.0,0.00019342,2]
[365488276,1749701448854,-490.0,0.00019342,2]
[365488277,1749701448864,-490.0,0.00019342,2]
[365488278,1749701448874,-490.0,0.00019342,2]
[365488279,1749701448884,-490.0,0.00019342,2]
[365488280,1749701448894,-490.0,0.00019342,2]
[365488281,1749701448904,-490.0,0.00019342,2]
[365488282,1749701448914,-490.0,0.00019342,2]
[365488283,1749701448924,-490.0,0.00019342,2]
[365488284,1749701448935,-490.0,0.00019342,2]
[365488285,1749701448945,-490.0,0.00019342,2]
[365488286,1749701448956,-450.7010071,0.00019342,2]
[365488287,1749701448966,-313.67005792,0.00019342,2]
[365488288,1749701448976,-896.8,0.00019342,2]
[365488289,1749701448986,-700.21,0.00019342,2]
[365488290,1749701448996,-495.24398251,0.00019342,2]
[365488291,1749701449006,-194.93909935,0.00019342,2]
[365488292,1749701449016,-470.0,0.00019342,2]
[365488293,1749701449026,-490.0,0.00019342,2]
[365488294,1749701449035,-508.131184,0.00019342,2]
[365488295,1749701449045,-490.0,0.00019342,2]
[365488296,1749701449055,-473.64918774,0.00019342,2]
[365488297,1749701449065,-470.0,0.00019342,2]
[365488298,1749701449075,-480.0,0.00019342,2]
[365488299,1749701449085,-225.32605512,0.00019342,2]
[365488300,1749701449098,-490.0,0.00019342,2]
[365488301,1749701449107,-490.0,0.00019342,2]
[365488302,1749701449117,-490.0,0.00019342,2]
[365488303,1749701449127,-490.0,0.00019342,2]
[365488304,1749701449137,-1486.29,0.00019342,2]
[365488305,1749701449147,-793.12,0.00019342,2]
[365488306,1749701449157,-490.0,0.00019342,2]
[365488307,1749701449167,-490.0,0.00019342,2]
[365488308,1749701449178,-490.0,0.00019342,2]
[365488309,1749701449188,-490.0,0.00019342,2]
[365488310,1749701449197,-490.0,0.00019342,2]
[365488311,1749701449207,-277.14631665,0.00019342,2]
[365488312,1749701449216,-490.0,0.00019342,2]
[365488313,1749701449225,-490.0,0.00019342,2]
[365488314,1749701449235,-784.6,0.00019342,2]
[365488315,1749701449246,-490.0,0.00019342,2]
[365488316,1749701449256,-580.22,0.00019342,2]
[365488317,1749701449266,-573.16,0.00019342,2]
[365488318,1749701449276,-490.0,0.00019342,2]
[365488319,1749701449286,-490.0,0.00019342,2]
[365488320,1749701449295,-625.39,0.00019342,2]
[365488321,1749701449305,-832.24,0.00019342,2]
[365488322,1749701449316,-470.0,0.00019342,2]
[365488323,1749701449326,-480.0,0.00019342,2]
[365488324,1749701449336,-490.0,0.00019342,2]
[365488325,1749701449345,-490.0,0.00019342,2]
[365488326,1749701449355,-752.68,0.00019342,2]
[365488327,1749701449364,-826.36,0.00019342,2]
[365488328,1749701449374,-1409.48,0.00019342,2]
[365488329,1749701449385,-490.0,0.00019342,2]
[365488330,1749701449394,-490.0,0.00019342,2]
[365488331,1749701449404,-490.0,0.00019342,2]
[365488332,1749701449414,-514.83833665,0.00019342,2]
[365488333,1749701449423,-490.0,0.00019342,2]
[365488334,1749701449432,-490.0,0.00019342,2]
[365488335,1749701449441,-480.63360034,0.00019342,2]
[365488336,1749701449451,-490.0,0.00019342,2]
[365488337,1749701449460,-1209.35,0.00019342,2]
[365488338,1749701449469,-1236.0,0.00019342,2]
[365488339,1749701449478,-480.0,0.00019342,2]
[365488340,1749701449488,-490.0,0.00019342,2]
[365488341,1749701449498,-490.0,0.00019342,2]
[365488342,1749701449508,-696.16,0.00019342,2]
[365488343,1749701449518,-583.66,0.00019342,2]
[365488344,1749701449528,-480.0,0.00019342,2]
[365488345,1749701449537,-490.0,0.00019342,2]
[365488346,1749701449547,-1803.01,0.00019342,2]
[365488347,1749701449556,-843.52,0.00019342,2]
[365488348,1749701449566,-490.0,0.00019342,2]
[365488349,1749701449575,-490.0,0.00019342,2]
[365488350,1749701449584,-901.7,0.00019342,2]
[365488351,1749701449593,-1084.16,0.00019342,2]
[365488352,1749701449603,-835.84,0.00019342,2]
[365488353,1749701449612,-490.0,0.00019342,2]
[365488354,1749701449622,-490.0,0.00019342,2]
[365488355,1749701449631,-490.0,0.00019342,2]
[365488356,1749701449641,-557.2697402,0.00019342,2]
[365488357,1749701449651,-912.83,0.00019342,2]
[365488358,1749701449661,-490.0,0.00019342,2]
[365488359,1749701449670,-490.0,0.00019342,2]
[365488360,1749701449680,-490.0,0.00019342,2]
[365488361,1749701449689,-547.02834518,0.00019342,2]
[365488362,1749701449699,-490.0,0.00019342,2]
[365488363,1749701449708,-1394.62,0.00019342,2]
[365488364,1749701449718,-490.0,0.00019342,2]
[365488365,1749701449727,-1190.94,0.00019342,2]
[365488366,1749701449737,-1006.16,0.00019342,2]
[365488367,1749701449746,-490.0,0.00019342,2]
[365488368,1749701449756,-490.0,0.00019342,2]
[365488369,1749701449767,-1070.91,0.00019342,2]
[365488370,1749701449776,-490.0,0.00019342,2]
[365488371,1749701449787,-490.0,0.00019342,2]
[365488372,1749701449803,-271.8858329,0.00019342,2]
[365488373,1749701449813,-490.0,0.00019342,2]
[365488374,1749701449823,-490.0,0.00019342,2]
[365488375,1749701449834,-480.0,0.00019342,2]
[365488376,1749701449845,-393.290475,0.00019342,2]
[365488377,1749701449854,-327.9254869,0.00019342,2]
[365488378,1749701449864,-490.0,0.00019342,2]
[365488379,1749701449873,-1216.85,0.00019342,2]
[365488380,1749701449883,-490.0,0.00019342,2]
[365488381,1749701449893,-490.0,0.00019342,2]
[365488382,1749701449902,-490.0,0.00019342,2]
[365488383,1749701449911,-898.93,0.00019342,2]
[365488384,1749701449920,-602.73,0.00019342,2]
[365488385,1749701449930,-490.0,0.00019342,2]
[365488386,1749701449940,-544.89642698,0.00019342,2]
[365488387,1749701449949,-490.0,0.00019342,2]
[365488388,1749701449959,-1183.85,0.00019342,2]